bitfinex/quotes_BTCUSD_20250826
["timestamp","ask_amount","ask_price","bid_price","bid_amount"]
[1756170581330,0.00014315,109870.0,109860.0,0.60232439]
[1756170581745,0.00014315,109870.0,109860.0,0.40819537]
[1756170581954,0.00014315,109870.0,109860.0,0.3535919]
[1756170582173,0.00014315,109870.0,109860.0,0.25708988]
[1756170582174,0.00217315,109870.0,109860.0,0.25708988]
[1756170582402,0.0288199,109870.0,109860.0,0.25708988]
[1756170582616,0.21085321,109870.0,109860.0,0.43372988]
[1756170582833,0.72004169,109870.0,109860.0,0.07504]
[1756170583053,0.72642046,109870.0,109860.0,0.005]
[1756170583300,0.18206645,109850.0,109840.0,0.11085007]
[1756170583519,0.6346858,109850.0,109840.0,0.1766]
[1756170583939,0.20960887,109850.0,109840.0,0.1766]
[1756170584151,0.21273887,109850.0,109840.0,0.1766]
[1756170584361,0.2159895,109850.0,109840.0,0.35868302]
[1756170584603,0.25610757,109850.0,109840.0,0.1766]
[1756170584809,0.24972694,109850.0,109840.0,0.1766]
[1756170585027,0.25285694,109850.0,109840.0,0.1766]
[1756170585418,0.25923886,109850.0,109840.0,0.1766]
[1756170585655,0.25923886,109850.0,109840.0,0.1776]
[1756170585871,0.68431579,109850.0,109840.0,0.1776]
[1756170586085,0.69856062,109850.0,109840.0,0.17756]
[1756170586300,0.76261042,109850.0,109840.0,0.17756]
[1756170586510,0.04613917,109850.0,109840.0,0.36162302]
[1756170586722,0.0472735,109850.0,109840.0,0.36162302]
[1756170586929,0.04613917,109850.0,109840.0,0.36468302]
[1756170587170,0.03975725,109850.0,109840.0,0.36468302]
[1756170587378,0.04089158,109850.0,109840.0,0.36468302]
[1756170587591,0.04727705,109850.0,109840.0,0.36468302]
[1756170587800,0.11363892,109850.0,109840.0,0.36468302]
[1756170588010,0.04089158,109850.0,109840.0,0.36162302]
[1756170588453,0.04089158,109850.0,109840.0,0.36062302]
[1756170588883,0.04089158,109850.0,109840.0,0.40268934]
[1756170589763,0.64469092,109850.0,109840.0,0.17848]
[1756170589973,0.74206856,109850.0,109840.0,0.17848]
[1756170590391,0.74206828,109850.0,109840.0,0.17848]
[1756170590609,0.82573068,109850.0,109840.0,0.002]
[1756170590824,0.40065375,109850.0,109840.0,0.002]
[1756170591289,0.82573068,109850.0,109840.0,0.002]
[1756170591506,0.18208302,109840.0,109830.0,0.35853789]
[1756170591716,0.04103404,109840.0,109830.0,0.35853789]
[1756170591929,0.02553967,109840.0,109830.0,0.43687488]
[1756170592139,0.01702645,109840.0,109830.0,0.43687488]
[1756170592997,0.01816078,109840.0,109830.0,0.43687488]
[1756170593416,0.00113433,109840.0,109830.0,0.43687488]
[1756170593648,0.18321735,109840.0,109830.0,0.43687488]
[1756170593854,0.64884836,109840.0,109830.0,0.17644]
[1756170594063,0.66273437,109840.0,109830.0,0.3584996]
[1756170594697,0.23765744,109840.0,109830.0,0.3584996]
[1756170594923,0.66586437,109840.0,109830.0,0.1784]
[1756170595129,0.66273437,109840.0,109830.0,0.3604996]
[1756170595348,0.00203,109840.0,109830.0,0.3604796]
[1756170595555,0.2033472,109860.0,109840.0,0.18207524]
[1756170595774,0.18320078,109850.0,109840.0,0.18207524]
[1756170596000,0.18406645,109850.0,109830.0,0.3625096]
[1756170596246,0.00113433,109840.0,109830.0,0.3625096]
[1756170596463,0.00113433,109840.0,109830.0,0.3644696]
[1756170596636,0.00113433,109840.0,109830.0,0.3634696]
[1756170596852,0.01537978,109840.0,109830.0,0.3634696]
[1756170597060,0.01537978,109840.0,109830.0,0.3604596]
[1756170597266,0.21920742,109840.0,109830.0,0.1820996]
[1756170597481,0.01424545,109840.0,109830.0,0.95322554]
[1756170597704,0.01424545,109840.0,109830.0,0.52814861]
[1756170597896,0.03512451,109840.0,109830.0,0.25735659]
[1756170598098,0.1974628,109840.0,109830.0,0.43367659]
[1756170598298,0.19632847,109840.0,109830.0,0.43367659]
[1756170598514,0.01424545,109840.0,109830.0,0.43668659]
[1756170598716,0.01424545,109840.0,109830.0,0.52814861]
[1756170599080,0.01424545,109840.0,109830.0,0.52914861]
[1756170599477,0.01424545,109840.0,109830.0,0.52814861]
[1756170599686,0.01424545,109840.0,109830.0,0.53014861]
[1756170600145,0.01424545,109840.0,109830.0,0.1890696]
[1756170600363,0.03512447,109840.0,109830.0,0.3623396]
[1756170600572,0.01537978,109840.0,109830.0,0.3623396]
[1756170600784,0.01537978,109840.0,109830.0,0.7623396]
[1756170601195,0.01537978,109840.0,109830.0,0.3623396]
[1756170601806,0.01537978,109840.0,109830.0,0.3653496]
[1756170602219,0.01424545,109840.0,109830.0,0.3653496]
[1756170602430,0.01424545,109840.0,109830.0,0.54825691]
[1756170602652,0.00113433,109850.0,109840.0,0.18206803]
[1756170602855,0.18520078,109850.0,109840.0,0.35826803]
[1756170603064,0.61932524,109860.0,109840.0,0.36022803]
[1756170603289,0.2827136,109860.0,109850.0,0.18206645]
[1756170603493,0.70979053,109860.0,109850.0,0.18206645]
[1756170603930,0.70979053,109860.0,109840.0,0.36127803]
[1756170603931,0.18206645,109850.0,109840.0,0.35826803]
[1756170604135,0.18406645,109850.0,109840.0,0.35826803]
[1756170604348,0.002,109850.0,109840.0,0.35826803]
[1756170604790,0.18406645,109850.0,109840.0,0.35928302]
[1756170605047,0.0891857,109850.0,109840.0,0.36124302]
[1756170605257,0.09232003,109850.0,109840.0,0.36124302]
[1756170605519,0.00921434,109860.0,109850.0,0.18206645]
[1756170605763,0.18518421,109860.0,109850.0,0.18402645]
[1756170605976,0.61623064,109870.0,109850.0,0.18402645]
[1756170606206,0.76367995,109870.0,109860.0,0.17612]
[1756170606482,0.68165894,109870.0,109860.0,0.35816988]
[1756170606693,0.68463894,109870.0,109860.0,0.17612]
[1756170607805,0.18204988,109860.0,109850.0,0.18206645]
[1756170608023,0.18206645,109850.0,109840.0,0.2687]
[1756170608238,0.69790425,109850.0,109840.0,0.2687]
[1756170608451,0.69790425,109850.0,109840.0,0.62686302]
[1756170608861,0.28707179,109850.0,109840.0,0.62686302]
[1756170609274,0.01424447,109850.0,109840.0,0.36313302]
[1756170609486,0.0203588,109850.0,109840.0,0.35812302]
[1756170609694,0.18208302,109840.0,109830.0,0.2687]
[1756170609897,0.26504154,109840.0,109830.0,0.2687]
[1756170610132,0.01424447,109850.0,109840.0,0.18208302]
[1756170610335,0.19744525,109850.0,109840.0,0.18404302]
[1756170610539,0.01424447,109850.0,109840.0,0.18404302]
[1756170610745,0.19944525,109850.0,109840.0,0.18404302]
[1756170610958,0.19831092,109850.0,109840.0,0.18404302]
[1756170611523,0.01424447,109850.0,109840.0,0.18404302]
[1756170611731,0.0153788,109850.0,109840.0,0.18705302]
[1756170612276,0.0153788,109850.0,109840.0,0.18905302]
[1756170612485,0.01424447,109850.0,109840.0,0.18905302]
[1756170612599,0.0153788,109850.0,109840.0,0.27797198]
[1756170612807,0.19115371,109870.0,109860.0,0.18204988]
[1756170613008,0.00014315,109870.0,109860.0,0.35996988]
[1756170613239,0.00014315,109870.0,109860.0,0.36297988]
[1756170613826,0.00014315,109870.0,109860.0,0.35996988]
[1756170614701,0.18331079,109870.0,109860.0,0.35996988]
[1756170615029,0.00014315,109870.0,109860.0,0.36297988]
[1756170615265,0.18204988,109860.0,109850.0,0.25210468]
[1756170615474,0.60725339,109870.0,109850.0,0.42998468]
[1756170615682,0.68829396,109870.0,109860.0,0.001]
[1756170615885,0.69029396,109870.0,109860.0,0.001]
[1756170616104,0.70453667,109870.0,109860.0,0.001]
[1756170616524,0.19841917,109870.0,109860.0,0.18400988]
[1756170616731,0.19641917,109870.0,109860.0,0.18400988]
[1756170617358,0.19841917,109870.0,109860.0,0.00196]
[1756170618932,0.18204988,109860.0,109850.0,0.50433167]
[1756170619127,0.19641917,109870.0,109850.0,0.50629167]
[1756170619358,0.01438586,109870.0,109860.0,0.18204988]
[1756170619611,0.01438586,109870.0,109860.0,0.18701988]
[1756170620080,0.91007355,109890.0,109860.0,0.18701988]
[1756170620292,0.60825875,109880.0,109860.0,0.17793988]
[1756170620511,0.61010442,109880.0,109860.0,0.17793988]
[1756170620728,0.00113433,109870.0,109860.0,0.17296988]
[1756170620926,0.27208464,109890.0,109870.0,0.18399331]
[1756170620927,0.20927767,109890.0,109870.0,0.18399331]
[1756170621157,0.00113433,109880.0,109870.0,0.18399331]
[1756170621300,0.00113433,109880.0,109870.0,0.18700331]
[1756170621733,0.02751272,109890.0,109880.0,0.18201674]
[1756170621947,0.02751272,109890.0,109880.0,0.18698674]
[1756170621948,0.02864705,109890.0,109880.0,0.18698674]
[1756170622150,0.21064723,109890.0,109880.0,0.18698674]
[1756170622408,0.01817705,109890.0,109880.0,0.23148562]
[1756170622956,0.2126317,109890.0,109880.0,0.04021163]
[1756170623179,0.2126317,109890.0,109860.0,0.27353439]
[1756170623180,0.18201674,109880.0,109860.0,0.27654439]
[1756170623541,0.18201674,109880.0,109870.0,0.00497]
[1756170623690,0.18401674,109880.0,109870.0,0.17568]
[1756170624291,0.18401674,109880.0,109870.0,0.17764]
[1756170624488,0.21859737,109890.0,109870.0,0.3980453]
[1756170624827,0.00113433,109880.0,109870.0,0.3980453]
[1756170625040,0.18515107,109880.0,109870.0,0.17764]
[1756170625270,0.18401674,109880.0,109870.0,0.00196]
[1756170625462,0.60909367,109880.0,109870.0,0.21705256]
[1756170625665,0.18401674,109880.0,109870.0,0.17564]
[1756170625823,0.18401674,109880.0,109870.0,0.17664]
[1756170626029,0.26708384,109880.0,109870.0,0.17564]
[1756170626260,0.60914367,109880.0,109870.0,0.17879]
[1756170626498,0.15994894,109880.0,109870.0,0.17879]
[1756170626721,0.16108327,109880.0,109870.0,0.17779]
[1756170626915,0.15903327,109880.0,109870.0,0.17879]
[1756170627165,0.16108327,109880.0,109870.0,0.17879]
[1756170627373,0.16108327,109880.0,109870.0,0.17664]
[1756170627583,0.16108327,109880.0,109870.0,0.17879]
[1756170627791,0.15903327,109880.0,109870.0,0.17879]
[1756170628170,0.16108327,109880.0,109870.0,0.17879]
[1756170628416,0.16108327,109880.0,109870.0,0.001]
[1756170628631,0.5861602,109880.0,109870.0,0.17656]
[1756170628816,0.58502587,109880.0,109870.0,0.17656]
[1756170629393,0.58502587,109880.0,109870.0,0.17871]
[1756170629624,0.15994894,109880.0,109870.0,0.17871]
[1756170629824,0.16108327,109880.0,109870.0,0.17871]
[1756170629996,0.5861602,109880.0,109870.0,0.17871]
[1756170630199,0.58502587,109880.0,109870.0,0.17871]
[1756170630436,0.66713324,109880.0,109870.0,0.17652]
[1756170630636,0.58502587,109880.0,109870.0,0.17652]
[1756170630905,0.58823587,109880.0,109870.0,0.17648]
[1756170631481,0.58502587,109880.0,109870.0,0.17648]
[1756170631903,0.85203079,109880.0,109870.0,0.001]
[1756170632117,0.94347608,109880.0,109870.0,0.001]
[1756170632297,0.94986472,109880.0,109870.0,0.001]
[1756170632484,1.28986472,109880.0,109870.0,0.001]
[1756170632682,1.30949049,109880.0,109870.0,0.001]
[1756170633123,1.30945093,109880.0,109870.0,0.001]
[1756170633344,1.28982472,109880.0,109870.0,0.001]
[1756170633968,0.86474779,109880.0,109870.0,0.001]
[1756170634182,1.31720272,109880.0,109870.0,0.001]
[1756170634401,1.28982472,109880.0,109870.0,0.001]
[1756170634839,1.28982472,109880.0,109850.0,0.07329699]
[1756170634840,0.18204988,109860.0,109850.0,0.07329699]
[1756170635045,0.66582796,109860.0,109850.0,0.07329699]
[1756170635696,0.68007203,109860.0,109850.0,0.07329699]
[1756170635915,0.74370748,109860.0,109850.0,0.07329699]
[1756170636129,0.75223518,109860.0,109850.0,0.07329699]
[1756170636345,0.74371548,109860.0,109850.0,0.07429699]
[1756170637467,0.75223336,109860.0,109850.0,0.07429699]
[1756170637909,0.75223336,109860.0,109850.0,0.001]
[1756170637910,1.51731029,109860.0,109850.0,0.001]
[1756170638148,1.52369757,109860.0,109850.0,0.001]
[1756170638388,4.78873829,109860.0,109850.0,1e-08]
[1756170638634,0.18208302,109840.0,109830.0,0.07329699]
[1756170638864,0.90240996,109840.0,109830.0,0.07329699]
[1756170639083,0.90561996,109840.0,109830.0,0.07329699]
[1756170639513,0.18211619,109820.0,109810.0,0.14329699]
[1756170639730,0.60924312,109820.0,109810.0,0.07329699]
[1756170639948,0.18416619,109820.0,109810.0,0.07344014]
[1756170640186,0.18211619,109820.0,109810.0,0.07559014]
[1756170640400,0.6088809,109820.0,109810.0,0.07344014]
[1756170640654,0.69110862,109820.0,109810.0,0.07344014]
[1756170640878,0.88376706,109820.0,109810.0,0.07344014]
[1756170641528,0.88376706,109820.0,109810.0,0.00014315]
[1756170641529,1.2407672,109820.0,109810.0,0.00014315]
[1756170641748,4.40776212,109820.0,109810.0,0.00214315]
[1756170642206,4.40776212,109820.0,109810.0,0.00014315]
[1756170642431,4.40772212,109820.0,109810.0,0.00114315]
[1756170642654,4.43511512,109820.0,109810.0,0.00014315]
[1756170642861,4.39347368,109820.0,109810.0,0.00014315]
[1756170644448,1.23550368,109820.0,109810.0,0.00014315]
[1756170644879,0.71508368,109820.0,109810.0,0.00538315]
[1756170645097,0.85626913,109820.0,109810.0,0.07868014]
[1756170645354,0.4311922,109820.0,109810.0,0.00538315]
[1756170645553,0.68114913,109820.0,109810.0,0.07868014]
[1756170646000,0.630105,109820.0,109810.0,0.07868014]
[1756170646184,0.72155029,109820.0,109810.0,0.08068014]
[1756170646423,0.20502807,109820.0,109810.0,0.26281291]
[1756170646634,0.0232741,109820.0,109810.0,0.26281291]
[1756170646846,0.01424918,109820.0,109810.0,0.26281291]
[1756170647062,0.01424918,109820.0,109810.0,0.53151291]
[1756170647273,0.1974997,109820.0,109810.0,0.27299315]
[1756170647458,0.70191005,109820.0,109810.0,0.27608315]
[1756170648253,0.70191005,109820.0,109810.0,0.45821592]
[1756170648455,0.01424918,109820.0,109810.0,0.52951291]
[1756170648609,0.01424918,109820.0,109810.0,0.26081291]
[1756170648610,0.01538351,109820.0,109810.0,0.26081291]
[1756170648818,0.1974997,109820.0,109810.0,0.26381291]
[1756170649018,0.19636537,109820.0,109810.0,0.26081291]
[1756170649301,0.27773502,109820.0,109810.0,0.26081291]
[1756170649480,0.01424918,109820.0,109810.0,0.26481291]
[1756170649697,0.1974997,109820.0,109810.0,0.26481291]
[1756170649878,0.19636537,109820.0,109810.0,0.26481291]
[1756170650682,0.01424918,109820.0,109810.0,0.26481291]
[1756170650888,0.1974997,109820.0,109810.0,0.26481291]
[1756170651223,0.01424918,109820.0,109810.0,0.26481291]
[1756170651561,0.01538351,109820.0,109810.0,0.26481291]
[1756170651768,0.01538351,109820.0,109810.0,0.3562582]
[1756170651996,0.19118717,109840.0,109830.0,0.1820996]
[1756170652189,0.35704063,109850.0,109830.0,0.3622996]
[1756170652390,0.00113433,109840.0,109830.0,0.3622996]
[1756170652516,0.18321735,109840.0,109830.0,0.1802]
[1756170652722,0.21861282,109840.0,109830.0,0.1802]
[1756170653125,0.22066282,109840.0,109830.0,0.00215]
[1756170653357,0.1820996,109830.0,109820.0,0.36012619]
[1756170653553,0.1820996,109830.0,109820.0,0.18016]
[1756170653756,0.1820996,109830.0,109820.0,0.22157091]
[1756170654182,0.1820996,109830.0,109820.0,0.04665091]
[1756170654382,0.27559489,109830.0,109810.0,0.18227592]
[1756170654581,0.61153745,109820.0,109810.0,0.00014315]
[1756170654804,0.61245312,109820.0,109810.0,0.00014315]
[1756170655003,0.85262643,109820.0,109810.0,0.00014315]
[1756170655150,0.88641595,109820.0,109810.0,0.00014315]
[1756170655991,0.90066508,109820.0,109810.0,0.00014315]
[1756170656186,0.89745508,109820.0,109810.0,0.00014315]
[1756170656395,0.90042508,109820.0,109810.0,0.00014315]
[1756170656602,0.47534815,109820.0,109810.0,0.00014315]
[1756170656974,0.90042508,109820.0,109810.0,0.00014315]
[1756170657235,0.21333386,109820.0,109810.0,0.00542315]
[1756170657447,0.21333386,109820.0,109810.0,0.18755592]
[1756170657664,0.19636532,109820.0,109810.0,0.18755592]
[1756170658513,0.19636532,109820.0,109810.0,0.00542315]
[1756170658722,0.66128874,109820.0,109810.0,0.00014315]
[1756170658932,0.68124973,109820.0,109810.0,0.00214315]
[1756170659136,0.74654304,109820.0,109810.0,0.00214315]
[1756170659357,0.31849611,109820.0,109810.0,0.00214315]
[1756170659609,0.49329611,109820.0,109810.0,0.00214315]
[1756170659864,0.91837304,109820.0,109810.0,0.00214315]
[1756170660282,0.92134304,109820.0,109810.0,0.00214315]
[1756170660702,0.91134304,109820.0,109810.0,0.00214315]
[1756170660964,0.44544962,109820.0,109810.0,0.00230315]
[1756170661171,0.20335631,109820.0,109810.0,0.00542315]
[1756170661384,0.20335631,109820.0,109810.0,0.18755592]
[1756170661799,0.03124012,109820.0,109810.0,0.18755592]
[1756170662013,0.21449064,109820.0,109810.0,0.18755592]
[1756170662232,0.21335631,109820.0,109810.0,0.18755592]
[1756170662442,0.21335631,109820.0,109810.0,0.18855592]
[1756170662657,0.21335631,109820.0,109810.0,0.18755592]
[1756170662860,0.21335631,109820.0,109810.0,0.19055592]
[1756170663075,0.03124012,109820.0,109810.0,0.19055592]
[1756170663214,0.03127754,109820.0,109810.0,0.19055592]
[1756170663426,0.21452806,109820.0,109810.0,0.19055592]
[1756170663654,0.21339373,109820.0,109810.0,0.19055592]
[1756170664060,0.25494306,109820.0,109810.0,0.00314315]
[1756170664427,0.25294306,109820.0,109810.0,0.00530315]
[1756170664863,0.25294306,109820.0,109810.0,0.00842315]
[1756170665219,0.25294306,109820.0,109810.0,0.00542315]
[1756170665417,0.25294306,109820.0,109810.0,0.27412315]
[1756170665603,0.03127754,109820.0,109810.0,0.45725592]
[1756170667052,0.21339373,109820.0,109810.0,0.45725592]
[1756170667526,0.03127754,109820.0,109810.0,0.45725592]
[1756170668098,0.21339373,109820.0,109810.0,0.45725592]
[1756170668306,0.03127754,109820.0,109810.0,0.45725592]
[1756170668524,0.21339373,109820.0,109810.0,0.45625592]
[1756170668715,0.21339373,109820.0,109810.0,0.45725592]
[1756170669668,0.03127754,109820.0,109810.0,0.54870121]
[1756170670121,0.03127754,109820.0,109810.0,0.86586415]
[1756170670335,0.18208302,109840.0,109830.0,0.1820996]
[1756170670549,0.19913094,109840.0,109830.0,0.3587396]
[1756170671010,0.19913094,109840.0,109830.0,0.3618596]
[1756170672596,0.1991307,109840.0,109830.0,0.3628596]
[1756170672822,0.01704768,109840.0,109830.0,0.41735571]
[1756170673049,0.01704768,109840.0,109830.0,0.3628596]
[1756170673702,0.01704768,109840.0,109830.0,0.6315596]
[1756170673922,0.20753181,109860.0,109840.0,0.18206999]
[1756170674143,0.23509797,109860.0,109850.0,0.17656]
[1756170674582,0.23509797,109860.0,109850.0,0.00216]
[1756170674784,0.23509797,109860.0,109850.0,0.17436]
[1756170674967,0.23509797,109860.0,109840.0,0.18518999]
[1756170674968,0.18206645,109850.0,109840.0,0.18518999]
[1756170675230,0.19911056,109850.0,109840.0,0.17964]
[1756170675444,0.19911056,109850.0,109840.0,0.17978315]
[1756170675823,0.19911056,109850.0,109840.0,0.36186617]
[1756170676043,0.2448448,109850.0,109840.0,0.00014315]
[1756170676296,0.66992173,109850.0,109840.0,0.00014315]
[1756170676513,0.67092173,109850.0,109840.0,0.00014315]
[1756170676956,0.01804411,109850.0,109840.0,0.1897822]
[1756170677166,0.01804411,109850.0,109840.0,0.18750617]
[1756170677376,0.001,109850.0,109840.0,0.6826231]
[1756170677598,0.001,109850.0,109840.0,0.70007212]
[1756170677777,0.001,109850.0,109840.0,0.79151741]
[1756170678328,0.001,109850.0,109840.0,0.54068048]
[1756170678733,0.001,109850.0,109840.0,0.58188698]
[1756170678942,0.01424454,109860.0,109850.0,0.18206645]
[1756170679359,0.01424454,109860.0,109850.0,0.18734645]
[1756170680860,0.01424454,109860.0,109850.0,0.35838645]
[1756170681062,0.01424454,109860.0,109850.0,0.36150645]
[1756170681685,0.01424454,109860.0,109850.0,0.36350645]
[1756170682010,0.01424454,109860.0,109850.0,0.18934645]
[1756170682257,0.01424454,109860.0,109850.0,0.36346645]
[1756170683214,0.01424454,109860.0,109850.0,0.63216645]
[1756170684208,0.01424454,109860.0,109850.0,0.63016645]
[1756170684624,0.01424454,109860.0,109850.0,0.63116645]
[1756170684819,0.01424454,109860.0,109850.0,0.63016645]
[1756170685204,0.01424454,109860.0,109850.0,0.63216645]
[1756170685405,0.01424454,109860.0,109850.0,0.63016645]
[1756170685854,0.01424454,109860.0,109850.0,0.63116645]
[1756170686435,0.01424454,109860.0,109850.0,0.72261174]
[1756170686624,0.01424454,109860.0,109850.0,0.63116645]
[1756170687828,0.01424454,109860.0,109850.0,0.63120645]
[1756170688222,0.60955517,109880.0,109860.0,0.18204988]
[1756170688432,0.18521846,109870.0,109860.0,0.18402988]
[1756170688652,0.18408413,109870.0,109860.0,0.35794988]
[1756170688850,0.18408413,109870.0,109860.0,0.35596988]
[1756170689058,0.18408413,109870.0,109860.0,0.62466988]
[1756170689269,0.18729413,109870.0,109860.0,0.62466988]
[1756170689472,0.18408413,109870.0,109860.0,0.2687]
[1756170689682,0.61237106,109870.0,109860.0,0.2687]
[1756170689920,0.77454277,109870.0,109860.0,0.2687]
[1756170690121,0.78304509,109870.0,109860.0,0.2687]
[1756170690336,0.69259359,109870.0,109860.0,0.2687]
[1756170690764,0.23167249,109870.0,109860.0,0.2687]
[1756170690978,0.71997059,109870.0,109860.0,0.2687]
[1756170691193,0.25,109900.0,109860.0,0.2687]
[1756170691434,0.63475906,109870.0,109860.0,0.15]
[1756170691644,0.88053801,109870.0,109860.0,0.15]
[1756170691858,0.89478122,109870.0,109860.0,0.14092]
[1756170692073,0.18204988,109860.0,109850.0,0.41476]
[1756170692287,0.60739681,109860.0,109850.0,0.41476]
[1756170692716,0.18204988,109860.0,109850.0,0.60204645]
[1756170692926,0.18204988,109860.0,109850.0,0.42824645]
[1756170693143,0.64873227,109870.0,109860.0,0.14092]
[1756170693354,0.23243214,109870.0,109860.0,0.14092]
[1756170693566,0.23243214,109870.0,109860.0,0.31464]
[1756170694471,0.21818893,109870.0,109860.0,0.31464]
[1756170694676,0.64326586,109870.0,109860.0,0.31464]
[1756170695325,0.64326586,109870.0,109860.0,0.3146]
[1756170695894,0.73471115,109870.0,109860.0,0.3146]
[1756170696679,0.73471115,109870.0,109860.0,0.14092]
[1756170697016,0.73471115,109870.0,109860.0,0.31456]
[1756170697645,0.64326586,109870.0,109860.0,0.31456]
[1756170698264,0.64965736,109870.0,109860.0,0.31456]
[1756170699471,0.22458043,109870.0,109860.0,0.31978]
[1756170700029,0.22458043,109870.0,109860.0,0.41978]
[1756170700030,0.19693243,109870.0,109860.0,0.41978]
[1756170700273,0.21117519,109870.0,109860.0,0.41978]
[1756170700687,0.20266839,109870.0,109860.0,0.41978]
[1756170700905,0.21120287,109870.0,109860.0,0.41978]
[1756170701584,0.21120287,109870.0,109860.0,0.60182988]
[1756170701799,0.20480602,109870.0,109860.0,0.60182988]
[1756170702452,0.20480602,109870.0,109860.0,0.41978]
[1756170703356,0.22187521,109870.0,109860.0,0.41978]
[1756170703569,0.03984108,109870.0,109860.0,0.60182988]
[1756170703771,0.22300872,109870.0,109860.0,0.60182988]
[1756170703967,0.22187439,109870.0,109860.0,0.41978]
[1756170704738,0.26779814,109870.0,109860.0,0.24092]
[1756170704955,0.26779814,109870.0,109850.0,0.24096]
[1756170704956,0.18204988,109860.0,109850.0,0.24096]
[1756170705192,0.2079182,109860.0,109850.0,0.41436]
[1756170705594,0.02165701,109860.0,109850.0,0.41436]
[1756170705797,0.28964032,109860.0,109850.0,0.41436]
[1756170706014,0.28850599,109860.0,109850.0,0.41436]
[1756170706405,0.20343689,109860.0,109850.0,0.41958]
[1756170707062,0.20343689,109860.0,109850.0,0.24618]
[1756170707229,0.20370689,109860.0,109850.0,0.41436]
[1756170707630,0.20343689,109860.0,109850.0,0.41958]
[1756170707842,0.20343689,109860.0,109850.0,0.42058]
[1756170708218,0.02138701,109860.0,109850.0,0.60264645]
[1756170708417,0.01706919,109860.0,109850.0,0.60264645]
[1756170708617,0.01820352,109860.0,109850.0,0.60264645]
[1756170708859,0.2005234,109860.0,109850.0,0.41848]
[1756170709007,0.19911907,109860.0,109850.0,0.42046]
[1756170709840,0.21336252,109860.0,109850.0,0.42046]
[1756170710091,0.19629333,109860.0,109850.0,0.24718]
[1756170710343,0.29841867,109860.0,109850.0,0.4152]
[1756170710723,0.21336369,109860.0,109850.0,0.60248645]
[1756170710930,0.21336374,109860.0,109850.0,0.60248645]
[1756170711066,0.21336374,109860.0,109850.0,0.42042]
[1756170711721,0.21363374,109860.0,109850.0,0.24718]
[1756170711929,0.21363374,109860.0,109850.0,0.42034]
[1756170712137,0.21336374,109860.0,109850.0,0.42034]
[1756170712349,0.29841884,109860.0,109850.0,0.42034]
[1756170712554,0.21363374,109860.0,109850.0,0.24196]
[1756170712761,0.6452826,109860.0,109850.0,0.00104]
[1756170712983,0.80419915,109860.0,109850.0,0.00104]
[1756170713189,0.80402915,109860.0,109850.0,0.00104]
[1756170713406,0.89547444,109860.0,109850.0,0.00104]
[1756170713615,0.72231444,109860.0,109850.0,4e-05]
[1756170713824,0.89543444,109860.0,109850.0,4e-05]
[1756170714025,0.89743444,109860.0,109850.0,4e-05]
[1756170714230,0.92481544,109860.0,109850.0,4e-05]
[1756170714436,0.92498544,109860.0,109850.0,4e-05]
[1756170715259,1.26498544,109860.0,109850.0,4e-05]
[1756170716255,1.27923095,109860.0,109850.0,4e-05]
[1756170717259,1.27906095,109860.0,109850.0,4e-05]
[1756170717432,1.2875925,109860.0,109850.0,4e-05]
[1756170718261,1.2877625,109860.0,109850.0,4e-05]
[1756170718488,1.73248995,109860.0,109850.0,4e-05]
[1756170718893,1.30741302,109860.0,109850.0,4e-05]
[1756170719477,1.20433302,109860.0,109850.0,4e-05]
[1756170719703,1.37727342,109860.0,109850.0,4e-05]
[1756170720033,1.37727341,109860.0,109850.0,4e-05]
[1756170720451,4.9603198,109860.0,109850.0,4e-05]
[1756170720851,4.53524287,109860.0,109850.0,4e-05]
[1756170721896,4.53324287,109860.0,109850.0,4e-05]
[1756170722348,4.53524287,109860.0,109850.0,4e-05]
[1756170723133,4.9603198,109860.0,109850.0,4e-05]
[1756170723333,4.36228287,109860.0,109850.0,4e-05]
[1756170723532,4.53495287,109860.0,109850.0,4e-05]
[1756170724861,4.53494491,109860.0,109850.0,4e-05]
[1756170725058,4.53511491,109860.0,109850.0,4e-05]
[1756170725544,4.96019184,109860.0,109850.0,4e-05]
[1756170725725,0.18211619,109820.0,109810.0,0.07642699]
[1756170725949,0.8163747,109820.0,109810.0,0.07853699]
[1756170726965,0.89078689,109820.0,109810.0,0.07329699]
[1756170727152,0.46543996,109820.0,109810.0,0.07853699]
[1756170727365,0.89051689,109820.0,109810.0,0.07853699]
[1756170728069,0.46543257,109820.0,109810.0,0.07853699]
[1756170728294,0.7177495,109820.0,109810.0,0.07853699]
[1756170728520,0.8904695,109820.0,109810.0,0.07853699]
[1756170728939,0.18213277,109810.0,109800.0,0.14096]
[1756170729184,0.66054864,109810.0,109800.0,0.1462]
[1756170729867,0.83318864,109810.0,109800.0,0.1462]
[1756170730080,0.66054864,109810.0,109800.0,0.1462]
[1756170730553,0.6072097,109810.0,109800.0,0.00528]
[1756170730695,0.6072097,109810.0,109800.0,0.1492]
[1756170732291,0.62421547,109810.0,109800.0,0.1492]
[1756170732711,0.65160847,109810.0,109800.0,0.1492]
[1756170732920,0.22653154,109810.0,109800.0,0.1492]
[1756170733176,0.7177896,109810.0,109800.0,0.1492]
[1756170733357,0.65160847,109810.0,109800.0,0.1492]
[1756170734629,0.22653154,109810.0,109800.0,0.1492]
[1756170734884,0.65160847,109810.0,109800.0,0.1492]
[1756170735093,0.22653154,109810.0,109800.0,0.2492]
[1756170735303,0.19913854,109810.0,109800.0,0.2492]
[1756170735748,0.25749725,109810.0,109800.0,0.2492]
[1756170736367,0.25749725,109810.0,109800.0,0.42168]
[1756170736825,0.27174714,109810.0,109800.0,0.42168]
[1756170737118,0.27174714,109810.0,109800.0,0.42164]
[1756170737327,0.24077843,109810.0,109800.0,0.42164]
[1756170737532,0.24077917,109810.0,109800.0,0.42164]
[1756170737950,0.60341694,109810.0,109800.0,0.2492]
[1756170738174,0.33222446,109810.0,109800.0,0.1492]
[1756170738403,0.69486442,109810.0,109800.0,0.1492]
[1756170738604,0.24078136,109810.0,109800.0,0.1492]
[1756170739870,0.24078136,109810.0,109800.0,0.43134936]
[1756170740085,0.04163989,109810.0,109800.0,0.43134936]
[1756170740298,0.01424989,109810.0,109800.0,0.43134936]
[1756170740514,0.01424989,109810.0,109800.0,0.97689444]
[1756170740734,0.01424989,109810.0,109800.0,0.88544915]
[1756170741016,0.01424989,109810.0,109800.0,0.52281138]
[1756170741236,0.56015476,109810.0,109800.0,0.1492]
[1756170741458,0.57631263,109810.0,109800.0,0.10617]
[1756170741669,0.65514094,109810.0,109800.0,0.24396]
[1756170741887,0.65514094,109810.0,109800.0,0.00304]
[1756170742093,0.68891849,109810.0,109800.0,0.14396]
[1756170742302,0.68891849,109810.0,109800.0,0.00304]
[1756170742510,0.68891849,109810.0,109800.0,0.14396]
[1756170742729,0.6746686,109810.0,109800.0,0.14396]
[1756170742943,0.6746686,109810.0,109800.0,0.00304]